Cogmind - Beta 16 @@@ ROGUE MODE // 2025.12.04 @ 18:10:53 Player: Scringis Result: Destroyed by S-10 Pest with Light Assault Rifle Performance ------------- Evolutions (0) 0 Regions Visited (2) 400 Robots Destroyed (17) 85 Value Destroyed (373) 373 Prototype IDs (2) 40 Alien Tech Used (0) 0 Bonus (0) 0 TOTAL SCORE: 898 Bonus ------- None Cogmind --------- Core Integrity 0/250 Matter 286/300 Energy 125/125 System Corruption 0% Temperature Cool (0) Movement Rolling (95) Ox1 Location -10/Mines Parts ------- > --- POWER (1) -------- Light Ion Engine > --- PROPULSION (2) --- Wheel Wheel > --- UTILITY (2) ------ Large Storage Unit > --- WEAPON (2) ------- Light Assault Rifle > --- INVENTORY (15) --- Light Ion Engine Light Ion Engine Wheel Structural Scanner Mining Laser Peak State ------------ > --- POWER ------------ Ion Engine > --- PROPULSION ------- Light Treads Compact Wheel > --- UTILITY ---------- Large Storage Unit Shield Generator > --- WEAPON ----------- Heavy EM Pulse Gun Heavy EM Pulse Gun > --- INVENTORY -------- Light Ion Engine Light Nuclear Core Light Treads Wheel Large Storage Unit EM Pulse Gun Assault Rifle Assault Rifle Light Assault Rifle [Rating: 11] Favorites ----------- Power Ion Engine Engine Ion Engine Propulsion Light Treads Treads Light Treads Wheel Wheel Utility Large Storage Unit Device Shield Generator Storage Large Storage Unit Weapon Heavy EM Pulse Gun Energy Gun Heavy EM Pulse Gun Ballistic Gun Assault Rifle Build | -11 -10 -10 ------- Run | Yrd Mat Min Slots Evolved . | . . . Power . | . . . Propulsion . | . . . Utility . | . . . Weapon . | . . . Parts Attached 22 | 7 6 9 Power 4 | 1 . 3 Engine 4 | 1 . 3 Core . | . . . Reactor . | . . . Propulsion 9 | 3 1 5 Treads 2 | 1 . 1 Leg . | . . . Wheel 7 | 2 1 4 Hover . | . . . Flight . | . . . Utility 3 | 1 2 . Device 1 | . 1 . Storage 2 | 1 1 . Processor . | . . . Hackware . | . . . Protection . | . . . Artifact . | . . . Weapon 6 | 2 3 1 Energy Gun 3 | 1 2 . Energy Cannon . | . . . Ballistic Gun 3 | 1 1 1 Ballistic Cannon . | . . . Launcher . | . . . Special Weapon . | . . . Impact Weapon . | . . . Slashing Weapon . | . . . Piercing Weapon . | . . . Special Melee Weapon . | . . . Unidentified Prototypes . | . . . Parts Lost 14 | . . 14 Power 2 | . . 2 Propulsion 6 | . . 6 Utility 1 | . . 1 Weapon 5 | . . 5 Highest Loss Streak 4 | . . 4 To Critical Strikes . | . . . Average Backups 6 | 2 7 6 Power 1 | 1 1 . Propulsion 1 | 1 2 1 Utility . | . . 1 Weapon 2 | . 3 2 Tool/Special . | . . . Unused Backups 10 | . . 10 Power 4 | . . 4 Propulsion 2 | . . 2 Utility 2 | . . 2 Weapon 1 | . . 1 Tool/Special 1 | . . 1 Average Slot Usage (%) 89 | . 96 79 Engine 13 | . 13 12 Treads 11 | . 14 9 Wheel 15 | . 14 16 Device 7 | . 11 3 Storage 14 | . 14 14 Energy Gun 18 | . 23 10 Ballistic Gun 7 | . 4 12 Peak Build Rating 11 | 6 11 11 Average Rating 8 | 4 9 6 On Entrance 5 | . 6 11 Avg Prop Armor Cover (%) 10 | 7 10 10 Naked Turns . | . . . Heaviest Build 33 | 14 33 33 Greatest Support 20 | 20 16 20 Greatest Overweight (x) 7 | 4 3 7 Average Overweight (x) 1 | . 2 1 Largest Inventory Capacity 15 | 8 15 15 Average Capacity 14 | 7 14 15 Most Carried 9 | 5 9 9 Average Carried 6 | 2 7 5 Final Capacity 15 | 8 15 15 Final Carried 9 | 4 9 5 Class Distribution -------------------- 100% | Mutant Dominant Class ---------------- Mutant | -10/Materials Mutant | -10/Mines Resources | -11 -10 -10 ----------- Run | Yrd Mat Min Matter Collected 606 | 226 157 223 Remotely . | . . . Salvage Created 514 | . 385 129 Parts 30 | . 27 3 Haulers Intercepted 1 | . 1 . Recyclers Shooed . | . . . Parts Field Recycled . | . . . Retrieved Matter . | . . . Parts Self-Destructed . | . . . Prevented . | . . . Parts Restored . | . . . Kills | -11 -10 -10 ------- Run | Yrd Mat Min Combat Hostiles Destroyed 20 | . 11 9 Guns 18 | . 9 9 AOE 2 | . 2 . Classes Destroyed 6 | . 4 2 Worker 2 | . 1 1 Hauler 1 | . 1 . Swarmer 7 | . 6 1 Grunt 5 | . 5 . Demolisher 2 | . . 2 Assembled 6 | . . 6 Best Kill Streak 4 | . 4 3 Combat Bots Only 3 | . 3 2 Max Kills in Single Turn 3 | . 3 2 Gunslinging . | . . . Exploded 2 | . 2 . Melee . | . . . Uniques/NPCs Destroyed . | . . . Combat | -11 -10 -10 -------- Run | Yrd Mat Min Hostile Shots Fired 126 | . 44 82 Missed 33 | . 7 26 Hits 93 | . 37 56 Melee 7 | . . 7 Projectile 86 | . 37 49 AOE 15 | . . 15 Critical Strikes 1 | . 1 . Damage Taken 1354 | . 299 1055 Core 252 | . 33 219 Absorbed by Shields 118 | . 92 26 Core Remaining (%) 100 | 100 . . Volleys Fired 87 | . 25 62 Largest 2 | . 2 2 Hottest 90 | . 90 90 Shots Fired 135 | . 50 85 Gun 135 | . 50 85 Cannon . | . . . Launcher . | . . . Special . | . . . Kinetic 79 | . 11 68 Thermal . | . . . Explosive . | . . . Electromagnetic 56 | . 39 17 Robot Hit Streak 11 | . 8 11 Robot Miss Streak 6 | . 5 6 Penetration Max . | . . . Secondary Targets 3 | . 2 1 Max Gunslinging Chain 1 | . 1 1 Shots Hit Robots 81 | . 29 52 Core Hits 36 | . 17 19 Critical Kills . | . . . Critical Parts Destroyed . | . . . Critical Strikes . | . . . Melee Attacks . | . . . Impact . | . . . Slashing . | . . . Piercing . | . . . Sneak Attacks . | . . . Combat Hostiles . | . . . Follow-up Attacks . | . . . Damage Inflicted 997 | . 485 512 Guns 927 | . 415 512 Cannons . | . . . Explosions 69 | . 69 . Melee . | . . . Ramming 1 | . 1 . Kinetic 489 | . 110 379 Thermal 69 | . 69 . Explosive . | . . . Electromagnetic 438 | . 305 133 Impact . | . . . Slashing . | . . . Piercing . | . . . Highest Corruption . | . . . Average Corruption . | . . . Corruption Purged . | . . . Corruption Blocked . | . . . Overload Shots . | . . . Overflow Damage . | . . . Projectiles . | . . . Explosions . | . . . Melee . | . . . Knockbacks . | . . . Impact . | . . . Kinetic . | . . . Secondary . | . . . Self-Inflicted Damage 32 | . 32 . Shots 1 | . 1 . Rammed 1 | . 1 . Targets Rammed 1 | . 1 . Kicked . | . . . Crushed . | . . . Highest Temperature 180 | . 180 40 Average Temperature 55 | . 62 29 Received Heat Transfer 138 | . 78 60 Siege Activations . | . . . Martial Activations . | . . . Shielding Activations . | . . . Robots Disrupted . | . . . Combat Hostiles . | . . . Robots Corrupted . | . . . Combat Hostiles . | . . . Parts Fried 1 | . 1 . Impact Corruptions . | . . . Robots Melted . | . . . Combat Hostiles . | . . . Parts Melted . | . . . Heat Transferred 50 | . 50 . Parts Sabotaged . | . . . Parts Stolen . | . . . Parts Stripped . | . . . Power Chain Reactions 1 | . 1 . Alert | -11 -10 -10 ------- Run | Yrd Mat Min Maximum Alert Level . | . . . Low Security (%) 100 | 100 100 100 Level 1 . | . . . Level 2 . | . . . Level 3 . | . . . Level 4 . | . . . Level 5 . | . . . High Security . | . . . Max Security . | . . . Peak Influence 123 | . 123 55 Initial 19 | . . 19 Average 33 | . 54 6 Influence Increases 423 | . 348 75 Destroy 0b10 Robot/C 280 | . 220 60 Destroy 0b10 Robot/NC 15 | . 10 5 Destroy Leader 52 | . 42 10 Successful Hack 43 | . 43 . Disable Machine 15 | . 15 . Destroy Structure 3 | . 3 . Partial Spotted 15 | . 15 . Influence Decreases 403 | . 296 107 Entered New Map 33 | . . 33 Time Decay 370 | . 296 74 Squads Dispatched 2 | . 2 . Investigation 1 | . 1 . Extermination . | . . . Reinforcement 1 | . 1 . Assault . | . . . Garrison . | . . . Intercept . | . . . Searches Triggered . | . . . Construction Impeded . | . . . Haulers Reinforced . | . . . Active Scanning Responses . | . . . Cargo Convoy Interrupts . | . . . Stealth | -11 -10 -10 --------- Run | Yrd Mat Min Distress Signals 1 | . 1 . Communications Jammed . | . . . Distress Signals . | . . . Times Spotted 34 | . 18 16 Peak Tracking Total 3 | . 3 3 Tactical Retreats 3 | . . 3 Traps | -11 -10 -10 ------- Run | Yrd Mat Min Traps Triggered 1 | . 1 . Indirectly . | . . . Trap Hack Attempts . | . . . Triggered . | . . . Disarmed . | . . . Reprogrammed . | . . . Reused . | . . . Traps Extracted . | . . . Installed . | . . . Triggered . | . . . Machines | -11 -10 -10 ---------- Run | Yrd Mat Min Machines Disabled 1 | . 1 . Max in Single Turn 1 | . 1 . Machines Repaired . | . . . Machines Dismantled . | . . . Machines Sabotaged . | . . . Overloaded Fab Kills . | . . . Hacking | -11 -10 -10 --------- Run | Yrd Mat Min Machines Accessed 7 | . 7 . Terminals 7 | . 7 . Fabricators . | . . . Repair Stations . | . . . Recycling Units . | . . . Scanalyzers . | . . . Garrison Access . | . . . Total Hacks 19 | . 19 . Successful 11 | . 11 . Failed 7 | . 7 . Catastrophic 1 | . 1 . Database Lockouts 1 | . 1 . Manual 18 | . 18 . Terminals 19 | . 19 . Fabricators . | . . . Repair Stations . | . . . Recycling Units . | . . . Scanalyzers . | . . . Garrison Access . | . . . Terminal Hacks 5 | . 5 . Robot Analysis 1 | . 1 . Prototype ID Bank 1 | . 1 . Branch Access Points 1 | . 1 . Terminal Index 1 | . 1 . Registered Components 1 | . 1 . Fabricator Hacks . | . . . Repair Station Hacks . | . . . Recycling Unit Hacks . | . . . Scanalyzer . | . . . Garrison Access Hacks . | . . . Unauthorized Hacks 6 | . 6 . Terminals 6 | . 6 . Botnet 6 | . 6 . Fabricators . | . . . Repair Stations . | . . . Recycling Units . | . . . Scanalyzers . | . . . Garrison Access . | . . . Data Cores Recovered . | . . . Used . | . . . Hacking Detections 5 | . 5 . Full Trace Events . | . . . Feedback Events . | . . . Feedback Blocked . | . . . Robot Schematics Acquired . | . . . Robots Built . | . . . Authchips . | . . . Time . | . . . Total Robot Build Rating . | . . . Part Schematics Acquired . | . . . Parts Built . | . . . Authchips . | . . . Time . | . . . Total Part Build Rating . | . . . Part Studies Acquired . | . . . Parts Repaired . | . . . Time . | . . . Parts Recycled . | . . . Recycled Matter . | . . . Retrieved Matter . | . . . Retrieved Components . | . . . Parts Scanalyzed . | . . . Part Schematics Acquired . | . . . Parts Damaged . | . . . Bothacking | -11 -10 -10 ------------ Run | Yrd Mat Min Used RIF Installer . | . . . Robots Hacked . | . . . Non-combat . | . . . Combat . | . . . Robot Hacks Applied . | . . . Relay Couplers Released . | . . . Fabnet Peak Effective % . | . . . Robots Rewired . | . . . Allies Hacked . | . . . Hacks Repelled . | . . . Allies | -11 -10 -10 -------- Run | Yrd Mat Min Total Allies 1 | . . 1 Largest Group 1 | . . 1 Highest-Rated Group 31 | . . 31 Highest-Rated Ally 31 | . . 31 Total Orders . | . . . Ally Attacks 19 | . . 19 Total Damage 146 | . . 146 Kills 6 | . . 6 Allies Corrupted . | . . . Allies Melted . | . . . Intel | -11 -10 -10 ------- Run | Yrd Mat Min Active Infowar (turns) . | . . . Robot Analysis Total 1 | . 1 . Derelict Logs Recovered 2 | . . 2 Drone Launches . | . . . Drone Recoveries . | . . . Exploration | -11 -10 -10 ------------- Run | Yrd Mat Min Turns Passed 1562 | 68 880 614 Spaces Moved 936 | 38 552 346 Core 17 | 14 . 3 Treads 24 | 10 . 14 Legs . | . . . Wheels 895 | 14 552 329 Hover . | . . . Flight . | . . . Fastest Speed 50 | 50 95 80 Average Speed 120 | 118 122 117 Slowest Speed 400 | 250 130 400 Overloaded Moves . | . . . Propulsion Burnouts . | . . . Robots Hopped . | . . . Potential Cave-ins . | . . . Cave-ins Triggered . | . . . Exploration Rate (%) 50 | 5 83 63 Regions Visited 2 Branch Regions 1 Pre-discovered Areas . | . . . Known Exits Taken 1 | . 1 . Unknown Exits Taken 1 | 1 . . Scrap Searched . | . . . Spaces Dug . | . . . Terrain Destroyed 2 | . 2 . Melee . | . . . Projectile . | . . . AOE 2 | . 2 . Terrain Rammed . | . . . Walls Destroyed . | . . . Machines Disabled . | . . . Actions | -11 -10 -10 --------- Run | Yrd Mat Min Total 1244 | 59 705 480 Wait 150 | 4 110 36 Move 934 | 37 551 346 Hop . | . . . Pick Up 34 | 10 9 15 Fast Attach . | . . . Attach 20 | 6 2 12 Detach . | . . . Swap 9 | 2 5 2 Drop 9 | . 2 7 Fire 87 | . 25 62 Melee . | . . . Ram 1 | . 1 . Kick . | . . . Crush . | . . . Escape Stasis . | . . . Rewire . | . . . Trap . | . . . Miscellaneous . | . . . Route ------- -11/Scrapyard -10/Materials (discovered 3 exits: [*Mat] / *Min / [*Sub]) -10/Mines (discovered 1 exit: [*Mat]) History --------- Turn | Location | Event 34 | -11/Scrapyard | Discovered new exit (range 14) 69 | -11/Scrapyard | Entered Materials 293 | -10/Materials | Discovered new exit (range 12) 302 | -10/Materials | Build established: Mutant 484 | -10/Materials | Discovered new exit (range 9) 501 | -10/Materials | Central database locked down 569 | -10/Materials | Derelicts attacked the area 759 | -10/Materials | Identified exit to Mines 869 | -10/Materials | Discovered new exit (range 7) 949 | -10/Materials | Entered Mines 1011 | -10/Mines | Learned Materials terminal intel 1067 | -10/Mines | Assembled infested the area 1075 | -10/Mines | Learned 2 Materials zone layouts 1092 | -10/Mines | Core integrity fell below 50% 1120 | -10/Mines | Lost 4 parts (1n1u2w) 1148 | -10/Mines | Discovered new exit (range 5) 1152 | -10/Mines | Received a Mining Laser from a helpful Derelict 1329 | -10/Mines | Lost 4 parts (1p2n1w) 1438 | -10/Mines | Lost 4 parts (1p1n2w) 1550 | -10/Mines | Core integrity fell below 20% 1563 | -10/Mines | Destroyed by S-10 Pest with Light Assault Rifle Last Messages --------------- 01403_ Assault Rifle destroyed. 01405_ Lgt. Ion Engine destroyed. 01405_ Assault Rifle destroyed. 01407_ Wheel destroyed. 01430_ Acquired Wheel. 01438_ Acquired 20 matter. 01473_ Wheel destroyed. 01475_ Destroyed Asb. Hover Unit. 01489_ K-01 Serf destroyed. 01490_ Extracted 24 matter. 01491_ Extracted 1 matter. 01497_ Wheel destroyed. 01498_ Extracted 1 matter. 01499_ as-89158 destroyed. 01500_ Extracted 1 matter. 01508_ Acquired Wheel. 01517_ Acquired Lgt. Ion Engine. 01518_ Acquired 20 matter. 01521_ Acquired Lgt. Ion Engine. 01551_ S-10 Pest destroyed. Map ----- +----------------------------------------------------+ | ???# #?????# ##? | | ???# #?????# ## | | ???# #?????# # | | ???## ## #######?# # | | ????##?## #??# | | ?????### =%! #???# | | ????## ##### #????# | | ????# ##???# ###### | | ????# ## ##???# | | ????# #?## ##??######### | | ????###???# % ##?????????#### | | ??????????## = #????????????## | | ???????????## %= #?????????????#### | | ????????????## * ##????????????????# | | ?????????????# ##?????????????????? | | ?????????????# #??????????????????? | | ?????????????# #??????????????????? | | ??????#|!#####! #??????????????????? | | ??????#%** | !%######??????####???? | | ??????#=%! % % ######## ##### | | ??????# ! ##### ### ## ## | | ??????####?????# #?# # # # # | | ???????????????# #?#=## # # | | ????######?????# #?#%####### ## | | ????# s ###### #?#%% % % ### | | ????# %[ @ s ####% ###### #?# | | ????# """#### ### #### ### ##% ##?# | | ????# """???# ## ## #* #??# | | ????# ""????# #?# ##########**#??# | | ????# ???? ### % #??# | | ????# ?????#### #??? | | ?????###??????## ##############??? | | ??????????????# < #???????????????? | | ?????????????# ##?????????????### | | ?????????????# #?????????????## | | ?????????????# #????????????## | | ?????????????## ##???????????## | | ??????????????###????????????## | | ????????????????????????????## | | ????????????????????????????# | | ????????????????????????????# ### | | ????????????????????????????## ##?? | | ?????????????????????????????####??? | | ???????????????????????????????????? | | | | | | | | | | | | | +----------------------------------------------------+ Best States ------------- Heat Dissipation 25 Energy Generation 10 Energy Capacity 250 Matter Stores 300 Matter Capacity 300 Sight Range 16 Terrain Scan Density 10 Evasion (%) 50 Recoil Reduction 1 Item Schematics ----------------- None Robot Schematics ------------------ None Fabricated ------------ Nothing Repaired ---------- Nothing Studied --------- None Alien Tech Used ----------------- None Achievements -------------- None Challenges ------------ None Game ------ Seed PulsePortablePit Manual? 0 Play Time 00:13:35 Cumulative 67.7 hours Start 2025.12.04 @ 18:00:22 End 2025.12.04 @ 18:10:53 Sessions 1 Manual Loads 0 Difficulty Rogue Special Mode None Game No. 172 Rogue 172 Adventurer 0 Explorer 0 Win Type - Total 0 Types 0/0/0/0/0/0/0/0/0/0 Lore% 33 Gallery% 36 Achievement% 29 Wizard Run 0 Options --------- Layout 1 ASCII 0 Keyboard 0 Movement Numpad Keybinds 0 Fullscreen 2 Font 24/Smallcaps Map View 50x35 Zoom Use 0% Tactical HUD 1 Map Filters NONE Filters NONE Steam 1 RUN: 81f40cf5-875f-48b5-ad37-a8ca4d26f5bb